bitfinex/quotes_ETHUSD_20260227
["timestamp","ask_amount","ask_price","bid_price","bid_amount"]
[1772167930514,0.5321928,2050.6,2050.2,0.89179145]
[1772167930699,0.4821928,2050.6,2049.9,1.374]
[1772167930899,1.22109981,2050.7,2049.9,3.8041065]
[1772167930900,0.5321928,2050.5,2049.9,3.8041065]
[1772167931089,0.5321928,2050.5,2050.0,0.49505132]
[1772167931495,0.5321928,2050.5,2049.9,3.0886112]
[1772167931793,0.5321928,2050.5,2049.9,1.86905132]
[1772167932916,1.21927428,2050.4,2049.9,1.86905132]
[1772167933229,0.5321928,2050.3,2049.9,1.86905132]
[1772167934091,0.002,2050.7,2050.0,0.71554242]
[1772167934295,0.5341928,2050.8,2050.3,0.71554242]
[1772167934509,0.5321928,2050.7,2050.2,0.49505132]
[1772167934714,0.5321928,2050.7,2050.1,0.71554242]
[1772167934922,0.5321928,2050.7,2050.2,1.71440991]
[1772167935317,0.5321928,2050.6,2050.2,0.49505132]
[1772167936098,0.002,2050.3,2050.2,0.49505132]
[1772167936295,0.002,2050.3,2050.1,0.71554242]
[1772167936627,0.5341928,2050.3,2049.7,1.21059374]
[1772167937122,0.002,2050.3,2049.8,0.49505132]
[1772167937423,1.75353155,2050.3,2049.8,0.49505132]
[1772167937607,0.5341928,2050.3,2049.8,0.49505132]
[1772167938123,0.5341928,2050.3,2049.7,1.9352326]
[1772167938427,0.5341928,2050.3,2049.7,2.43028392]
[1772167939757,0.71754242,2050.8,2049.9,0.49505132]
[1772167939758,0.002,2050.8,2049.9,0.49505132]
[1772167940025,0.002,2051.3,2050.7,0.71554242]
[1772167940026,0.5341928,2051.3,2050.7,0.71554242]
[1772167940207,0.5341928,2051.3,2050.8,1.377]
[1772167940404,0.5321928,2051.2,2050.4,4.53032639]
[1772167940603,0.5321928,2051.2,2050.4,1.377]
[1772167940831,0.5321928,2051.2,2050.5,1.21059374]
[1772167941124,0.5321928,2051.2,2050.5,0.49505132]
[1772167942215,0.5321928,2051.0,2050.4,2.59623176]
[1772167942421,0.5321928,2051.0,2050.4,3.09128308]
[1772167942615,1.21883863,2051.2,2050.5,0.49505132]
[1772167942616,0.5321928,2051.2,2050.5,0.49505132]
[1772167942818,0.5321928,2051.2,2050.6,1.21059374]
[1772167943017,0.002,2051.3,2050.7,0.49505132]
[1772167944731,0.002,2051.3,2050.8,1.21903647]
[1772167945414,0.002,2051.3,2050.8,1.71408779]
[1772167945613,0.002,2051.3,2050.9,0.49505132]
[1772167947728,0.002,2051.3,2050.9,1.714]
[1772167948600,0.002,2051.1,2050.9,1.714]
[1772167948824,0.002,2051.1,2051.0,0.49505132]
[1772167949812,0.002,2051.1,2050.9,1.21894868]
[1772167949813,0.002,2051.3,2050.9,1.21894868]
[1772167950911,0.5341928,2051.3,2050.8,1.376]
[1772167951118,0.5341928,2051.3,2050.8,2.5950268]
[1772167951436,0.5341928,2051.3,2050.8,3.09007812]
[1772167952135,0.5341928,2051.3,2050.9,0.49505132]
[1772167952530,0.002,2051.3,2050.9,0.49505132]
[1772167953533,0.002,2051.5,2051.1,0.49505132]
[1772167953712,0.5321928,2051.4,2050.8,3.09007812]
[1772167954523,0.5321928,2051.4,2050.9,0.49505132]
[1772167955018,1.75090113,2051.4,2050.9,0.49505132]
[1772167955415,0.5321928,2051.3,2050.3,1.2193042]
[1772167955619,0.5321928,2051.3,2050.3,1.71437448]
[1772167955817,0.5321928,2051.3,2050.3,0.49505132]
[1772167956215,0.5321928,2051.1,2050.1,2.60040714]
[1772167956711,0.5321928,2050.9,2050.1,2.60040714]
[1772167957108,0.5321928,2050.9,2050.1,1.381]
[1772167958641,0.5321928,2050.9,2050.1,2.60043683]
[1772167959452,0.50105872,2050.7,2050.1,1.381]
[1772167960152,0.50105872,2050.7,2050.3,0.001]
[1772167961434,1.73210058,2050.6,2050.3,0.001]
[1772167962948,0.51294522,2050.6,2050.3,0.001]
[1772167963631,1.73210757,2050.6,2050.3,0.001]
[1772167964247,0.51294522,2050.5,2050.3,0.001]
[1772167964444,0.51294522,2050.4,2050.1,1.381]
[1772167964833,0.51294522,2050.4,2050.0,0.001]
[1772167965842,1.73227897,2050.3,2050.0,0.001]
[1772167966937,0.51294522,2050.2,2050.0,0.001]
[1772167967856,1.73234858,2050.2,2050.0,0.001]
[1772167968661,0.51294522,2050.2,2050.0,0.001]
[1772167971071,0.51294522,2050.1,2050.0,0.001]
[1772167971366,1.21939991,2050.2,2050.0,0.001]
[1772167971550,1.73232733,2050.3,2050.0,0.001]
[1772167971870,0.51294522,2050.6,2050.2,0.97025115]
[1772167972078,0.51294522,2050.6,2050.0,0.001]
[1772167972245,0.51294522,2050.6,2050.1,0.4761844]
[1772167972961,0.51294522,2050.6,2050.2,0.001]
[1772167973368,0.002,2050.3,2050.2,0.001]
[1772167974057,0.51494522,2050.3,2050.2,0.001]
[1772167974656,1.22118174,2050.6,2050.2,0.001]
[1772167974657,0.51494522,2050.6,2050.2,0.001]
[1772167974855,0.002,2050.6,2050.2,0.49506675]
[1772167976363,0.51494522,2050.6,2050.2,0.49506675]
[1772167977360,0.002,2050.6,2050.2,0.49506675]
[1772167979651,0.002,2050.6,2050.2,1.71445447]
[1772167980152,0.002,2051.2,2050.2,1.71445447]
[1772167980153,0.002,2051.2,2050.6,0.49406675]
[1772167980453,0.51294522,2051.1,2050.4,0.49406675]
[1772167980653,1.2189176,2051.0,2050.4,0.49406675]
[1772167980848,0.51294522,2051.0,2050.4,0.49406675]
[1772167981355,0.51294522,2051.0,2050.5,0.49406675]
[1772167982068,0.51294522,2051.0,2050.3,3.09137042]
[1772167982458,0.51294522,2051.0,2050.4,0.49406675]
[1772167982974,0.51294522,2050.9,2050.4,1.71333129]
[1772167983360,1.73180448,2051.1,2050.5,0.49406675]
[1772167985573,1.73180448,2051.1,2050.5,1.71324596]
[1772167986075,0.002,2050.9,2050.5,1.71324596]
[1772167988170,0.002,2050.9,2050.6,0.49406675]
[1772167988764,0.002,2051.1,2050.7,0.49406675]
[1772167988975,0.002,2051.1,2050.8,0.49406675]
[1772167989559,0.002,2051.4,2051.1,0.49406675]
[1772167990057,0.002,2051.4,2051.2,1.72695444]
[1772167991377,0.002,2051.4,2051.3,0.50815569]
[1772167991682,0.002,2051.6,2051.3,0.50815569]
[1772167992378,0.002,2051.6,2051.4,1.21867992]
[1772167992975,0.002,2051.6,2051.4,1.72683561]
[1772167993781,0.002,2051.6,2051.4,1.21867992]
[1772167994486,0.002,2051.6,2051.3,0.50815569]
[1772167994682,0.002,2051.6,1801.0,0.01998401]
[1772167994683,0.49141706,2051.5,2050.8,1.219033]
[1772167995382,0.49141706,2051.5,2050.8,1.69491001]
[1772167995566,0.49141706,2051.5,2050.8,2.2030657]
[1772167995769,0.49141706,2051.5,2050.9,0.50815569]
[1772167996576,1.71009698,2051.4,2050.9,0.50815569]
[1772167997072,0.49141706,2051.3,2050.8,0.47587701]
[1772167998170,0.49341706,2051.3,2050.8,0.47587701]
[1772167998887,1.71218504,2051.3,2050.8,0.47587701]
[1772167999381,1.71218504,2051.3,2050.8,0.9840327]
[1772167999574,0.49341706,2051.3,2050.8,2.20306826]
[1772168000367,0.002,2051.8,2051.3,0.50815569]
[1772168000584,1.70969421,2052.1,2051.5,0.50815569]
[1772168000782,0.49141706,2052.0,2051.4,1.86287701]
[1772168000964,0.49141706,2052.0,2051.6,0.47587701]
[1772168001165,0.49141706,2052.4,2051.8,0.47587701]
[1772168001374,0.49141706,2052.4,2051.6,0.50815569]
[1772168001887,0.49141706,2052.4,2051.5,4.1038576]
[1772168002382,0.49141706,2052.4,2051.6,0.50815569]
[1772168003156,0.49141706,2052.4,2051.8,0.50815569]
[1772168003157,1.70951884,2052.4,2051.8,0.50815569]
[1772168003582,0.49141706,2052.3,2051.6,1.21851683]
[1772168003769,0.49141706,2052.3,2051.6,1.72667252]
[1772168003969,0.49141706,2052.3,2051.6,1.21851683]
[1772168004165,1.70948092,2052.5,2051.7,0.50815569]
[1772168004372,0.49141706,2052.4,2051.7,0.50815569]
[1772168004986,1.21787643,2052.8,2052.1,2.37708139]
[1772168005206,0.49141706,2052.9,2052.1,0.88]
[1772168005685,0.49141706,2052.9,2052.1,2.09825589]
[1772168006393,0.49141706,2052.9,2052.1,0.88]
[1772168006768,0.49141706,2052.9,2051.7,1.72665699]
[1772168007369,0.49141706,2052.7,2051.5,1.21858157]
[1772168007963,0.49141706,2052.7,2051.6,0.50815569]
[1772168008183,0.49141706,2052.7,2051.5,1.21858157]
[1772168010187,1.21796745,2052.6,2051.5,1.21858157]
[1772168010491,0.49141706,2052.4,2051.4,3.11479191]
[1772168010878,0.49141706,2052.4,2051.0,1.72806636]
[1772168012273,1.21814549,2052.3,2051.1,0.50815569]
[1772168012470,0.49141706,2052.2,2051.1,0.50815569]
[1772168018071,0.49141706,2052.0,2051.0,0.001]
[1772168018277,0.49141706,2051.8,2051.0,0.001]
[1772168018487,0.49141706,2051.8,2051.0,1.21991461]
[1772168018693,0.49141706,2051.8,2051.0,0.001]
[1772168020799,0.49203922,2051.6,2051.0,0.001]
[1772168022205,0.49203922,2051.5,2051.0,0.001]
[1772168022788,0.49203922,2051.3,2051.0,0.001]
[1772168023308,0.49203922,2051.3,2051.2,0.001]
[1772168024310,0.49203922,2051.3,2051.0,0.001]
[1772168024804,1.21867992,2051.4,2051.0,0.001]
[1772168025002,1.71071914,2051.4,2051.0,0.001]
[1772168030994,1.21868961,2051.4,2051.0,0.52998257]
[1772168031611,0.49203922,2051.3,2051.0,0.001]
[1772168032020,0.49203922,2051.2,2050.8,0.001]
[1772168033829,1.71089739,2051.1,2050.8,0.001]
[1772168036599,1.71089739,2051.1,2051.0,0.001]
[1772168038229,1.71089739,2051.1,2050.8,0.001]
[1772168038712,0.49203922,2051.0,2050.8,0.001]
[1772168040943,1.71097079,2051.0,2050.8,0.001]
[1772168041961,0.49203922,2050.9,2050.8,0.001]
[1772168042800,1.71101625,2050.9,2050.8,0.001]
[1772168043024,1.71101625,2050.9,2050.7,0.001]
[1772168043429,0.49203922,2050.9,2050.7,0.001]
[1772168043730,1.71102059,2050.9,2050.7,0.001]
[1772168047234,1.542,2051.1,2050.7,0.52998257]
[1772168047235,2.03403922,2051.1,2050.7,0.52998257]
[1772168050235,2.03403922,2051.1,2050.9,0.001]
[1772168050442,0.002,2051.2,2050.8,0.49690673]
[1772168050742,0.002,2051.4,2051.1,0.49690673]
[1772168056454,0.002,2051.4,2051.1,1.71576187]
[1772168056640,0.002,2051.4,2051.1,0.49690673]
[1772168057252,0.002,2051.4,2051.2,0.49690673]
[1772168057458,0.002,2051.7,2051.3,0.49690673]
[1772168057754,0.4872929,2051.7,2051.3,0.49690673]
[1772168059654,1.70579595,2051.7,2051.3,0.49690673]
[1772168060968,0.4872929,2051.7,2051.3,1.71563269]
[1772168061142,0.4872929,2051.7,2051.4,0.49690673]
[1772168062032,1.70579824,2051.7,2051.4,0.49690673]
[1772168062233,0.4872929,2051.7,2051.4,0.49690673]
[1772168062634,0.002,2051.7,2051.4,0.49690673]
[1772168062948,0.002,2052.0,2051.6,0.49690673]
[1772168064079,0.002,2052.0,2051.7,0.49690673]
[1772168064352,0.4872929,2052.0,2051.7,0.49690673]
[1772168064737,0.4872929,2052.0,2051.3,0.49690673]
[1772168064948,0.4872929,2052.0,2051.2,2.42947692]
[1772168065549,0.4872929,2052.0,2051.3,0.49690673]
[1772168066653,1.21838296,2051.9,2051.3,1.71562863]
[1772168066852,1.21838296,2051.9,2051.4,0.49690673]
[1772168067024,0.4852929,2051.8,2051.3,1.2187219]
[1772168067226,0.4852929,2051.8,2051.4,0.49690673]
[1772168068431,1.70565643,2052.0,2051.4,0.49690673]
[1772168068628,0.4852929,2051.9,2051.4,1.71554021]
[1772168069264,0.4852929,2051.9,2051.4,2.19113583]
[1772168069557,0.4852929,2051.9,2051.4,1.6942291]
[1772168069763,0.4852929,2051.9,2051.5,0.49690673]
[1772168070868,0.4852929,2051.9,2051.5,1.71548026]
[1772168071051,0.4852929,2051.9,2051.5,0.49690673]
[1772168071865,1.70368058,2051.9,2051.5,0.49690673]
[1772168072351,0.4852929,2051.8,2051.4,0.97250235]
[1772168073060,1.70564892,2052.0,2051.5,0.49690673]
[1772168073268,0.4872929,2052.0,2051.7,0.49690673]
[1772168073853,1.70562055,2052.0,2051.7,0.49690673]
[1772168074351,0.4852929,2051.9,2051.4,0.47559562]
[1772168074546,0.4852929,2051.9,2051.4,0.97250235]
[1772168075047,1.70373524,2051.8,2051.5,0.001]
[1772168075468,1.70573524,2051.8,2051.5,0.001]
[1772168075677,0.4852929,2051.7,2051.5,0.001]
[1772168076982,1.70385402,2051.6,2051.5,0.001]
[1772168077574,0.4852929,2051.6,2051.5,0.001]
[1772168079381,1.70385402,2051.6,2051.5,0.001]
[1772168080766,1.21856112,2051.6,2051.3,0.001]
[1772168081074,0.49829103,2051.5,2051.0,0.001]
[1772168081250,0.49829103,2051.3,2051.0,0.001]
[1772168082174,0.49829103,2051.3,2051.0,0.94639395]
[1772168085165,1.71703638,2051.3,2051.0,0.94639395]
[1772168085893,0.49829103,2051.2,2051.0,0.47659562]
[1772168086088,0.49829103,2051.2,2051.0,0.001]
[1772168089404,0.49829103,2051.3,2051.0,0.001]
[1772168090590,0.49829103,2051.2,2051.0,0.001]
[1772168093906,1.71709088,2051.2,2051.0,0.001]
[1772168094794,4.87484217,2051.4,2051.0,0.47079833]
[1772168094795,1.71706167,2051.3,2051.0,0.47079833]
[1772168097121,1.71706167,2051.3,2051.0,0.001]
[1772168098698,0.49829103,2051.2,2051.0,0.001]
[1772168098899,4.87474695,2051.4,2050.7,1.22005081]
[1772168098900,0.49829103,2051.0,2050.7,0.001]
[1772168100823,0.49829103,2050.8,2050.5,0.001]
[1772168101220,0.49829103,2050.8,2050.4,0.001]
[1772168101690,0.49829103,2050.6,2050.4,0.001]
[1772168102930,1.71750585,2050.5,2050.4,0.001]
[1772168103227,0.49829103,2050.5,2050.4,0.001]
[1772168104903,1.71750585,2050.5,2050.4,0.001]
[1772168107102,0.49829103,2050.4,2050.2,0.001]
[1772168109340,1.71759295,2050.4,2050.2,0.001]
[1772168113317,0.49163077,2050.5,2050.2,0.001]
[1772168113618,0.49163077,2050.5,2050.2,0.47465974]
[1772168114153,0.49163077,2050.5,2050.4,0.001]
[1772168114839,1.71065002,2050.9,2050.5,0.47365974]
[1772168115043,0.002,2050.8,2050.5,0.47365974]
[1772168115260,0.002,2050.8,2050.7,0.47365974]
[1772168120840,0.49363077,2050.8,2050.4,0.47659562]
[1772168121049,0.002,2050.8,2050.5,0.47365974]
[1772168121234,6.45345403,2051.1,2050.7,0.47365974]
[1772168121235,0.002,2051.1,2050.7,0.47365974]
[1772168121436,0.002,2051.1,2050.9,0.47365974]
[1772168124740,0.002,2051.1,2051.0,0.47365974]
[1772168125149,0.002,2051.1,2051.0,0.94925536]
[1772168125370,0.002,2051.3,2051.1,0.47365974]
[1772168125655,1.71219296,2051.6,2051.1,0.47365974]
[1772168125828,0.002,2051.6,2051.1,0.47365974]
[1772168126850,0.49363077,2051.6,2051.2,0.47365974]
[1772168128062,0.002,2051.6,2051.3,0.47365974]
[1772168129742,0.49363077,2051.6,2051.3,0.47365974]
[1772168129939,1.71221008,2051.6,2051.3,0.47365974]
[1772168130138,0.49363077,2051.6,2051.3,0.47365974]
[1772168130650,1.71220853,2051.6,2051.3,0.47365974]
[1772168133457,1.71220853,2051.6,2051.1,1.69251017]
[1772168133647,1.71220853,2051.6,2051.2,0.47365974]
[1772168134045,0.002,2051.6,2051.3,0.47365974]
[1772168134243,0.002,2051.6,2051.5,0.47365974]
[1772168134442,1.577,2051.8,2051.5,0.47365974]
[1772168135867,0.002,2051.8,2051.5,0.47365974]
[1772168136659,0.49163077,2051.7,2051.3,0.47365974]
[1772168137569,1.21856112,2051.6,2051.3,0.47365974]
[1772168138151,1.71017953,2051.7,2051.3,0.47365974]
[1772168138874,4.87588277,2051.8,2051.4,0.47365974]
[1772168138875,1.71210529,2051.8,2051.4,0.47365974]
[1772168139075,0.49363077,2051.8,2051.4,0.47365974]
[1772168139370,0.002,2051.8,2051.5,0.49325805]
[1772168140977,0.46358149,2051.8,2051.5,0.49325805]
[1772168141472,0.46358149,2051.8,2051.4,0.71361404]
[1772168141646,0.002,2051.4,2051.3,0.48851089]
[1772168141846,1.22050122,2051.8,2051.4,0.48851089]
[1772168142054,0.002,2051.8,2051.4,0.48851089]
[1772168142255,0.002,2051.6,2051.5,0.48851089]
[1772168144363,0.002,2051.8,2051.6,0.48851089]
[1772168146587,0.46358149,2051.8,2051.0,1.20212493]
[1772168146792,0.46358149,2051.8,2051.1,0.48851089]
[1772168147168,0.46158149,2051.6,2051.0,0.71361404]
[1772168147371,0.46158149,2051.6,2050.8,2.42115924]
[1772168147692,0.46158149,2051.6,2050.9,0.48851089]
[1772168149596,0.46158149,2051.4,2050.8,0.71361404]
[1772168150162,0.46158149,2051.4,2050.7,3.08560544]
[1772168150380,0.46158149,2051.4,2050.8,0.48851089]
[1772168152068,0.46158149,2051.2,2050.8,0.48851089]
[1772168153996,0.46158149,2051.2,2051.1,0.001]
[1772168154303,1.68038024,2051.2,2051.1,0.001]
[1772168156302,1.68038024,2051.2,2050.9,0.001]
[1772168156514,0.46158149,2051.1,2050.9,0.001]
[1772168158382,1.68049909,2051.0,2050.9,0.001]
[1772168158583,0.46158149,2050.9,2050.7,0.001]
[1772168160108,0.46158149,2050.8,2050.7,0.001]
[1772168160291,0.46158149,2050.7,2050.2,0.001]
[1772168160497,0.46158149,2050.4,2050.1,0.001]
[1772168160678,1.68073685,2050.6,2050.2,0.48951089]
[1772168161508,0.46158149,2050.5,2050.2,0.48951089]
[1772168165608,1.584,2050.8,2050.3,0.001]
[1772168165798,2.80306267,2050.8,2050.4,0.48851089]
[1772168166117,3.26464416,2050.8,2050.4,0.48851089]
[1772168166301,0.46158149,2050.7,2050.4,0.48851089]
[1772168167811,1.68068097,2050.7,2050.4,0.48951089]
[1772168168408,0.002,2050.5,2050.4,0.48951089]
[1772168169728,0.002,2050.5,2050.4,0.001]
[1772168170126,0.46754561,2050.5,2050.4,0.002]
[1772168170321,0.46754561,2050.5,2050.4,0.001]
[1772168172210,1.68676043,2050.5,2050.4,0.001]
[1772168174340,0.46554561,2050.4,2050.3,0.001]
[1772168174538,0.46554561,2050.4,2050.1,0.18265581]
[1772168174539,0.46554561,2050.4,2050.2,0.001]
[1772168174940,0.46554561,2050.4,2050.1,0.001]
[1772168175247,0.46554561,2050.4,2050.1,0.002]
[1772168175535,0.46554561,2050.4,2050.0,0.18253745]
[1772168176646,1.68482257,2050.4,2050.0,0.18253745]
[1772168177544,0.46554561,2050.4,2050.0,0.18253745]
[1772168177843,1.68483648,2050.4,2050.0,0.18253745]
[1772168180242,0.46554561,2050.4,2050.2,0.001]
[1772168180541,1.21882742,2051.2,2050.3,0.71361404]
[1772168180714,1.21882742,2051.2,2050.5,0.45806116]
[1772168180914,1.68437303,2051.2,2050.5,0.45806116]
[1772168181944,0.46554561,2051.2,2050.5,0.45806116]
[1772168182318,1.68435404,2051.2,2050.7,0.45806116]
[1772168182519,0.46554561,2051.1,2050.7,0.45806116]
[1772168183849,0.46554561,2051.1,2050.5,0.45806116]
[1772168183850,0.46554561,2051.0,2050.5,0.45806116]
[1772168184033,0.46554561,2051.0,2050.3,0.45806116]
[1772168184234,0.46554561,2050.8,2050.3,0.45806116]
[1772168186253,0.46554561,2050.8,2050.4,0.45806116]
[1772168186436,2.81494988,2051.0,2050.5,0.45806116]
[1772168186838,3.28049549,2051.0,2050.5,0.45806116]
[1772168187338,1.21890893,2051.1,2050.5,0.50682975]
[1772168188934,1.68438245,2051.2,2050.7,0.45806116]
[1772168189267,1.21878154,2051.3,2050.7,0.45806116]
[1772168189456,1.68627039,2051.4,2050.7,0.45806116]
[1772168189662,1.22072478,2051.4,2050.7,0.45806116]
[1772168189847,1.68627039,2051.4,2050.7,0.45806116]
[1772168190431,1.68627039,2051.4,2050.5,0.45806116]
[1772168190432,0.46554561,2051.0,2050.5,0.45806116]
[1772168190635,0.71361404,2051.3,2050.5,0.45806116]
[1772168190636,0.46554561,2051.2,2050.5,0.45806116]
[1772168192251,0.002,2050.8,2050.6,0.45806116]
[1772168195856,0.002,2051.0,2050.7,0.45806116]
[1772168196866,0.46754561,2051.0,2050.5,0.45806116]
[1772168197734,0.46754561,2051.0,2050.3,3.04438492]
[1772168197952,0.46754561,2051.0,2050.3,2.58632376]
[1772168198160,0.46754561,2051.0,2050.4,0.45806116]
[1772168201465,0.50093869,2050.8,2050.4,0.45806116]
[1772168204660,0.50093869,2050.8,2050.6,0.001]
[1772168204869,0.50093869,2050.7,2050.3,1.367]
[1772168205170,0.50293869,2050.6,2050.4,0.001]
[1772168206766,1.72015351,2050.5,2050.4,0.001]
[1772168208247,0.50093869,2050.4,2050.2,0.001]
[1772168212363,1.22119536,2050.6,2050.2,0.48237864]
[1772168212670,1.72213405,2050.6,2050.2,0.48237864]
[1772168213552,0.002,2050.6,2050.2,0.48237864]
[1772168214357,0.50293869,2050.6,2050.2,0.48237864]
[1772168214557,0.50293869,2050.6,2050.3,0.48137864]
[1772168217278,0.002,2050.6,2050.3,0.48137864]
[1772168218452,0.002,2050.6,2050.4,0.001]
[1772168220600,0.50293869,2050.6,2050.2,0.001]
[1772168221264,1.21921482,2050.5,2050.2,0.48237864]
[1772168221668,0.50093869,2050.4,2050.2,0.001]
[1772168222590,0.50093869,2050.2,2050.0,0.001]
[1772168223162,0.50093869,2050.0,2049.7,0.001]
[1772168223469,1.21957168,2049.9,2049.7,0.001]
[1772168223676,1.72051037,2049.9,2049.7,0.001]
[1772168224202,0.50093869,2049.8,2049.2,0.15916963]
[1772168225493,1.21969068,2049.7,2049.2,0.15916963]
[1772168225692,0.50093869,2049.6,2049.2,0.15916963]
[1772168227770,1.72074479,2049.6,2049.2,0.15916963]
[1772168229085,0.50093869,2049.8,2049.3,0.15885247]
[1772168229291,0.50093869,2049.9,2049.4,0.15885247]
[1772168229861,1.69438544,2049.8,2049.4,0.15885247]
[1772168230065,0.47475426,2049.8,2049.4,0.15885247]
[1772168230603,0.47475426,2050.0,2049.6,0.15873065]
[1772168231189,0.47475426,2050.3,2049.7,0.15867079]
[1772168231394,0.47475426,2050.2,2049.7,0.15867079]
[1772168231596,2.17008893,2050.4,2049.7,0.15867079]
[1772168232095,0.002,2050.1,2049.8,0.15861161]
[1772168232469,0.002,2050.1,2049.6,5.3549435]
[1772168232470,0.47675426,2050.1,2049.5,1.368]
[1772168232794,0.47675426,2050.1,2049.5,2.74641565]
[1772168233174,0.95081465,2050.0,2049.5,1.52661161]
[1772168233378,0.47475426,2049.9,2049.5,1.52661161]
[1772168233705,0.47475426,2049.9,2049.5,1.368]
[1772168234082,0.47475426,2049.9,2049.5,1.52649529]
[1772168236080,0.47475426,2049.8,2049.5,1.52649529]
[1772168241002,0.47475426,2050.0,2049.7,0.1581087]
[1772168241207,0.47475426,2050.0,2049.6,1.37785545]
[1772168241583,0.47475426,2050.0,2049.6,0.1581087]
[1772168243008,0.47475426,2050.0,2049.6,1.37785803]
[1772168243405,0.47475426,2050.0,2049.7,0.15900386]
[1772168244183,0.002,2049.8,2049.7,0.15900386]
[1772168245287,0.002,2050.1,2049.8,0.15590142]
[1772168247304,0.002,2050.1,2049.9,1.21957168]
[1772168247688,0.002,2050.1,2049.9,0.15580132]
[1772168249507,0.47475426,2050.0,2049.7,0.001]
[1772168249703,0.47475426,2050.0,2049.7,0.15670351]
[1772168256029,0.47475426,2049.7,2049.2,0.001]
[1772168256242,0.47475426,2049.5,2048.9,0.001]
[1772168256536,0.47475426,2049.4,2049.0,0.15837842]
[1772168256742,0.47475426,2049.4,2049.1,0.003]
[1772168256900,0.47475426,2049.4,2049.1,0.15833409]
[1772168257319,1.69465762,2049.4,2049.1,0.15833409]
[1772168257527,1.69465762,2049.4,2049.1,0.003]
[1772168257737,1.69465762,2049.4,2049.2,0.001]
[1772168258217,0.47475426,2049.3,2049.2,0.001]
[1772168259521,1.69468301,2049.3,2049.2,0.001]
[1772168260757,0.47938114,2049.2,2048.0,0.08192]
[1772168260917,1.194104,2048.9,2048.1,0.15907859]
[1772168261255,0.47938114,2048.8,2048.0,1.93542173]
[1772168261411,0.47938114,2048.6,2048.0,0.15507859]
[1772168263518,0.47938114,2048.6,2048.1,0.004]
[1772168264445,0.47938114,2048.6,2048.2,0.004]
[1772168264446,0.47938114,2048.4,2048.2,0.004]
[1772168264745,0.47938114,2048.4,2047.6,4.88373863]
[1772168264746,0.47938114,2048.2,2047.0,0.15491784]
[1772168265121,0.47938114,2048.2,2047.1,0.15491784]
[1772168265427,0.47938114,2048.2,2047.3,0.15491784]
[1772168266334,0.47938114,2048.0,2047.1,0.1548788]
[1772168268450,0.47938114,2047.8,2047.1,0.1548788]
[1772168269015,0.47938114,2047.8,2047.0,1.27009312]
[1772168269219,0.47938114,2047.8,2047.5,0.001]
[1772168270348,1.22088196,2047.7,2047.5,0.001]
[1772168270519,1.7002631,2047.7,2047.5,0.001]
[1772168272547,1.607,2048.2,2047.5,0.15565379]
[1772168272747,0.47938114,2048.1,2047.5,0.15565379]
[1772168273551,0.47938114,2048.1,2047.5,0.001]
[1772168274532,0.47938114,2047.9,2047.5,0.001]
[1772168274831,0.47938114,2047.9,2047.3,0.001]
[1772168276752,0.47938114,2047.7,2047.3,0.001]
[1772168276958,0.47938114,2047.5,2047.3,0.001]
[1772168278742,1.22106085,2047.4,2047.3,0.001]
[1772168279360,3.3072631,2047.7,2047.3,0.001]
[1772168280129,0.47938114,2047.6,2047.3,0.001]
[1772168280859,2.08738114,2047.8,2047.3,0.15634421]
[1772168281260,0.47938114,2047.7,2047.3,0.15634421]
[1772168281475,0.47938114,2047.7,2047.3,0.001]
[1772168281840,0.47938114,2047.7,2047.5,0.001]
[1772168282981,0.47938114,2047.5,2045.2,0.37806205]
[1772168283178,0.47938114,2046.1,2045.2,0.15627967]
[1772168283472,0.47938114,2045.9,2045.0,1.40314965]
[1772168283838,0.47938114,2045.9,2045.0,1.40314949]
[1772168284438,0.47938114,2046.4,2045.3,22.901395]
[1772168284645,0.47938114,2046.7,2045.7,0.15624796]
[1772168284868,0.47938114,2046.7,2045.9,0.15621661]
[1772168285039,1.70088065,2046.7,2046.0,1.40252022]
[1772168285942,1.70088065,2046.7,2046.0,0.15621661]
[1772168286153,0.47938114,2046.7,2046.0,0.15621661]
[1772168286867,0.47938114,2046.0,2043.3,2.44065667]
[1772168287045,0.47938114,2045.0,2043.7,0.08516296]
[1772168287354,0.47938114,2044.9,2044.0,2.9862]
[1772168287579,0.47938114,2044.8,2043.9,0.0691265]
[1772168287874,0.47938114,2044.8,2043.8,6.953986]
[1772168288443,0.47938114,2045.3,2043.9,11.77446822]
[1772168288646,0.47938114,2045.1,2044.1,5.90894]
[1772168288846,0.47938114,2045.1,2043.8,9.100518]
[1772168289047,0.47938114,2044.9,2043.9,5.3911]
[1772168290701,1.22249388,2045.0,2042.2,0.097]
[1772168290702,0.47880491,2042.7,2042.2,0.097]
[1772168290990,0.7675069,2043.9,2042.4,0.48879169]
[1772168290991,1.22321166,2043.8,2042.4,0.48879169]
[1772168291141,6.67992416,2044.2,2042.4,0.48879169]
[1772168291142,0.47880491,2044.5,2043.0,0.48879169]
[1772168291346,4.89164995,2044.7,2043.1,0.48879169]
[1772168291589,5.37045486,2044.7,2043.1,0.48879169]
[1772168291897,0.47880491,2044.5,2043.1,0.08814128]
[1772168292978,1.22285267,2044.4,2043.3,0.48879169]
[1772168294181,1.22285267,2044.4,2043.3,0.48979169]
[1772168295060,1.22285267,2044.4,2043.4,0.48879169]
[1772168296775,0.47880491,2044.3,2043.3,0.001]
[1772168297100,1.22297231,2044.2,2043.3,0.48979169]
[1772168297467,1.22297231,2044.2,2043.3,0.001]
[1772168297670,0.47880491,2044.1,2043.3,0.001]
[1772168297901,1.17297231,2044.2,2043.3,0.001]
[1772168298114,1.17297231,2044.2,2043.3,0.48979169]
[1772168299077,5.37069415,2044.3,2043.3,0.48979169]
[1772168299794,0.47880491,2044.2,2043.3,0.001]
[1772168299996,0.47880491,2044.1,2043.3,0.001]
[1772168301107,1.70189688,2044.0,2043.3,0.001]
[1772168302085,0.47880491,2043.9,2043.3,0.001]
[1772168302780,1.22309197,2044.0,2043.3,0.001]
[1772168303006,1.22309197,2044.0,2043.4,0.48879169]
[1772168303305,3.35977261,2044.4,2043.8,5.032714]
[1772168303512,3.35977261,2044.4,2043.9,0.02440976]
[1772168303722,3.35977261,2044.4,2043.8,0.51320145]
[1772168303880,3.35977261,2044.4,2043.8,0.48879169]
[1772168304775,3.35977261,2044.4,2043.9,0.02440497]
[1772168306111,3.35977261,2044.4,2043.9,1.7363433]
[1772168306323,0.45443691,2044.8,2043.9,0.02440497]